Cogmind - Beta 17 @@@ ROGUE MODE // 2026.07.15 @ 13:39:28 Player: Minty Result: Destroyed by 1R-BY1(h) with Bolt Gun Performance ------------- Evolutions (0) 0 Regions Visited (3) 600 Robots Destroyed (15) 75 Value Destroyed (393) 393 Prototype IDs (24) 480 Alien Tech Used (0) 0 Bonus (5901) 5901 TOTAL SCORE: 7449 Bonus ------- Follower Combat Kills 228 Prayed to X0-1V1 5000 Major X0-1V1 Interference 50 Registered with UFD 300 Met Optimus in HQ 500 Friendly Fire -177 Cogmind --------- Core Integrity 0/150 Matter 300/300 Energy 896/900 System Corruption 0% Temperature Cool (12) Movement Flying (26) Location -9/Scraptown Parts ------- > --- POWER (1) -------- (None) > --- PROPULSION (2) --- Cooled VTOL Module (fused) Cooled VTOL Module (fused) > --- UTILITY (2) ------ Small Storage Unit Self-contained Transmogrifier > --- WEAPON (2) ------- Falx (fused) > --- INVENTORY (9) ---- Surveybot 24 Chip Expert System Makeshift Hacking Suite Makeshift Hacking Suite A0-MCA's Component Scanner Subdweller Shrapnel Launcher Heavy Missile Launcher Blade Trap DRS Beacon (Ready) Peak State ------------ > --- POWER ------------ Meta Core > --- PROPULSION ------- Light Armored Exoskeleton Assembled Alloy Leg > --- UTILITY ---------- Small Storage Unit Advanced Melee Analysis Suite Self-contained Transmogrifier > --- WEAPON ----------- Subdweller Shrapnel Launcher Chainsword Falx > --- INVENTORY -------- Surveybot 24 Chip A0-MCA's Component Scanner Heavy Missile Launcher Shrapnel Trap Piercing Trap DRS Beacon Botcube [Rating: 59] Favorites ----------- Power Light Ion Engine Engine Light Ion Engine Power Core Light Neutrino Core Reactor Improved Quantum Reactor Propulsion Aluminum Leg Treads Improved Treads Leg Aluminum Leg Flight Unit Cooled VTOL Module Utility Small Storage Unit Device Self-contained Transmogrifier Storage Small Storage Unit Processor Advanced Melee Analysis Suite Weapon Ripper Energy Gun EM Pulse Gun Ballistic Gun Subdweller Machine Gun Launcher Subdweller Shrapnel Launcher Impact Weapon Great Maul Slashing Weapon Ripper Build | -11 -10 -10 -9 ------- Run | Yrd Mat Sub Scr Slots Evolved . | . . . . Power . | . . . . Propulsion . | . . . . Utility . | . . . . Weapon . | . . . . Parts Attached 18 | . 3 11 4 Power 3 | . . 2 1 Engine 2 | . . 2 . Core 1 | . . . 1 Reactor . | . . . . Propulsion 3 | . 1 1 1 Treads 1 | . . 1 . Leg 2 | . 1 . 1 Wheel . | . . . . Hover . | . . . . Flight . | . . . . Utility 4 | . 1 2 1 Device 3 | . 1 2 . Storage . | . . . . Processor 1 | . . . 1 Hackware . | . . . . Protection . | . . . . Artifact . | . . . . Weapon 8 | . 1 6 1 Energy Gun 3 | . 1 2 . Energy Cannon . | . . . . Ballistic Gun 3 | . . 3 . Ballistic Cannon . | . . . . Launcher 1 | . . 1 . Special Weapon . | . . . . Impact Weapon 1 | . . . 1 Slashing Weapon . | . . . . Piercing Weapon . | . . . . Special Melee Weapon . | . . . . Unidentified Prototypes 2 | . . 2 . Corrupted Parts 1 | . . 1 . System Corruption 1 | . . 1 . Parts Lost 3 | . . 3 . Power . | . . . . Propulsion . | . . . . Utility . | . . . . Weapon 3 | . . 3 . Highest Loss Streak 2 | . . 2 . To Critical Strikes . | . . . . Average Backups 5 | . 5 6 5 Power . | . 1 1 . Propulsion 2 | . 4 4 1 Utility . | . . . 1 Weapon 1 | . . . 1 Tool/Special . | . . . . Unused Backups 17 | . 6 1 10 Power 2 | . 1 . 1 Propulsion 7 | . 2 . 5 Utility 4 | . 1 . 3 Weapon 4 | . 2 1 1 Tool/Special . | . . . . Average Slot Usage (%) 96 | . 95 99 95 Engine 7 | . 14 12 5 Core 4 | . . 2 6 Reactor 1 | . . . 2 Treads 2 | . . 1 2 Leg 24 | . 28 26 22 Device 13 | . 9 13 13 Storage 13 | . 14 14 13 Energy Gun 7 | . 28 15 . Ballistic Gun 2 | . . 11 . Impact Weapon 4 | . . . 6 Slashing Weapon 12 | . . 1 18 Peak Build Rating 59 | . 8 26 59 Average Rating 24 | . 6 11 33 On Entrance 11 | 6 6 8 26 Avg Prop Armor Cover (%) 12 | . . 8 13 Naked Turns . | . . . . Heaviest Build 37 | 11 13 23 37 Greatest Support 63 | 20 20 23 63 Greatest Overweight (x) 1 | . . 1 1 Average Overweight (x) . | . . . . Largest Inventory Capacity 9 | . 8 9 9 Average Capacity 8 | . 8 8 9 Most Carried 9 | . 7 9 9 Average Carried 7 | . 5 7 8 Final Capacity 9 | 8 8 9 9 Final Carried 9 | 6 6 9 9 Transmogrified Parts 27 | . . 5 22 Integrity Recovered 335 | . . 66 269 Class Distribution -------------------- 94% | Mutant 4% | Gladiator Dominant Class ---------------- Mutant | -10/Materials Mutant | -10/Subcaves Mutant | -9/Scraptown Resources | -11 -10 -10 -9 ----------- Run | Yrd Mat Sub Scr Matter Collected 984 | 200 30 359 395 Remotely . | . . . . Salvage Created 576 | . 89 274 213 Parts 41 | . 9 20 12 Haulers Intercepted . | . . . . Recyclers Shooed . | . . . . Parts Field Recycled . | . . . . Retrieved Matter . | . . . . Parts Self-Destructed 9 | . . 9 . Prevented . | . . . . Parts Restored . | . . . . Kills | -11 -10 -10 -9 ------- Run | Yrd Mat Sub Scr Combat Hostiles Destroyed 14 | . 4 8 2 Melee 1 | . . . 1 Guns 9 | . 4 5 . AOE 4 | . . 3 1 Classes Destroyed 7 | . 2 2 3 Swarmer 6 | . 3 3 . Grunt 1 | . 1 . . Subdweller 4 | . . 4 . Explorer 1 | . . . 1 Scrapper 1 | . . . 1 Elite 1 | . . . 1 Mutant 1 | . . 1 . Best Kill Streak 3 | . 2 3 1 Combat Bots Only 3 | . 2 3 1 Max Kills in Single Turn 2 | . 2 2 2 Gunslinging 1 | . 1 . . Exploded 2 | . . 2 1 Melee 1 | . . . 1 Uniques/NPCs Destroyed . | . . . . Combat | -11 -10 -10 -9 -------- Run | Yrd Mat Sub Scr Hostile Shots Fired 99 | . 35 30 34 Missed 30 | . 10 13 7 Hits 69 | . 25 17 27 Projectile 69 | . 25 17 27 Critical Strikes 2 | . 1 . 1 Damage Taken 879 | . 198 252 429 Core 207 | . 38 40 129 Absorbed by Shields . | . . . . Core Remaining (%) 100 | 100 . . . Volleys Fired 50 | . 13 34 3 Largest 2 | . 2 2 1 Hottest 100 | . 80 100 40 Shots Fired 91 | . 26 62 3 Gun 86 | . 26 60 . Cannon . | . . . . Launcher 5 | . . 2 3 Special . | . . . . Kinetic 22 | . . 19 3 Thermal 20 | . . 20 . Explosive . | . . . . Electromagnetic 49 | . 26 23 . Robot Hit Streak 15 | . 4 15 3 Robot Miss Streak 5 | . 5 4 . Penetration Max . | . . . . Secondary Targets 1 | . 1 . . Max Gunslinging Chain 1 | . 1 . . Shots Hit Robots 48 | . 11 29 8 Core Hits 25 | . 5 15 5 Critical Kills . | . . . . Critical Parts Destroyed . | . . . . Critical Strikes 2 | . . 1 1 Corrupt 1 | . . 1 . Sever 1 | . . . 1 Melee Attacks 17 | . . . 17 Impact 1 | . . . 1 Slashing 16 | . . . 16 Piercing . | . . . . Sneak Attacks . | . . . . Combat Hostiles . | . . . . Follow-up Attacks 1 | . . . 1 Damage Inflicted 1221 | . 157 603 461 Guns 568 | . 157 411 . Cannons . | . . . . Explosions 373 | . . 192 181 Melee 280 | . . . 280 Ramming . | . . . . Kinetic 360 | . . 179 181 Thermal 261 | . . 261 . Explosive . | . . . . Electromagnetic 320 | . 157 163 . Impact . | . . . . Slashing 280 | . . . 280 Piercing . | . . . . Highest Corruption 1 | . . 1 1 Average Corruption 1 | . . 1 1 Corruption Purged . | . . . . Corruption Blocked . | . . . . Effects 5 | . . 4 1 Message Errors 2 | . . 2 . Matter Fused 3 | . . 2 1 Overload Shots . | . . . . Overflow Damage 7 | . . 3 4 Projectiles . | . . . . Explosions 7 | . . 3 4 Melee . | . . . . Knockbacks . | . . . . Impact . | . . . . Kinetic . | . . . . Secondary . | . . . . Self-Inflicted Damage 43 | . . 36 7 Shots 2 | . . 1 1 Rammed . | . . . . Targets Rammed . | . . . . Kicked . | . . . . Crushed . | . . . . Highest Temperature 126 | . 126 13 20 Average Temperature 42 | . 50 5 10 Received Heat Transfer 248 | . 6 79 163 Siege Activations . | . . . . Martial Activations . | . . . . Shielding Activations . | . . . . Robots Disrupted . | . . . . Combat Hostiles . | . . . . Robots Corrupted . | . . . . Combat Hostiles . | . . . . Parts Fried . | . . . . Impact Corruptions . | . . . . Robots Melted . | . . . . Combat Hostiles . | . . . . Parts Melted 2 | . . 2 . Heat Transferred 325 | . . 325 . Parts Sabotaged . | . . . . Parts Stolen . | . . . . Parts Stripped . | . . . . Power Chain Reactions 1 | . . 1 . Alert | -11 -10 -10 -9 ------- Run | Yrd Mat Sub Scr Maximum Alert Level . | . . . . Low Security (%) 100 | . 100 . . Level 1 . | . . . . Level 2 . | . . . . Level 3 . | . . . . Level 4 . | . . . . Level 5 . | . . . . High Security . | . . . . Max Security . | . . . . Peak Influence 90 | . 90 . . Initial . | . . . . Average 39 | . 39 . . Influence Increases 287 | . 137 150 . Destroy 0b10 Robot/C 140 | . 80 60 . Destroy Leader 20 | . 20 . . Successful Hack 7 | . 7 . . Select Force Hacks 30 | . 30 . . Lose Combat Pursuer 90 | . . 90 . Influence Decreases 287 | . 137 150 . Time Decay 267 | . 137 130 . Lost Part 20 | . . 20 . Squads Dispatched 1 | . 1 . . Investigation 1 | . 1 . . Extermination . | . . . . Reinforcement . | . . . . Assault . | . . . . Garrison . | . . . . Intercept . | . . . . Searches Triggered . | . . . . Construction Impeded . | . . . . Haulers Reinforced . | . . . . Active Scanning Responses . | . . . . Cargo Convoy Interrupts . | . . . . Stealth | -11 -10 -10 -9 --------- Run | Yrd Mat Sub Scr Distress Signals . | . . . . Communications Jammed . | . . . . Distress Signals . | . . . . Times Spotted 34 | . 8 10 16 Peak Tracking Total 5 | . 3 5 4 Tactical Retreats 3 | . . 2 1 Traps | -11 -10 -10 -9 ------- Run | Yrd Mat Sub Scr Traps Triggered . | . . . . Indirectly . | . . . . Trap Hack Attempts . | . . . . Triggered . | . . . . Disarmed . | . . . . Reprogrammed . | . . . . Reused . | . . . . Traps Extracted . | . . . . Installed 1 | . . . 1 Triggered . | . . . . Most Traps Carried 2 | . . 2 2 Machines | -11 -10 -10 -9 ---------- Run | Yrd Mat Sub Scr Machines Disabled 10 | . . 2 8 Max in Single Turn 5 | . . 1 5 Machines Repaired . | . . . . Machines Dismantled . | . . . . Machines Sabotaged . | . . . . Overloaded Fab Kills . | . . . . Hacking | -11 -10 -10 -9 --------- Run | Yrd Mat Sub Scr Machines Accessed 5 | . 2 1 2 Terminals 1 | . 1 . . Fabricators . | . . . . Repair Stations . | . . . . Recycling Units 1 | . 1 . . Scanalyzers . | . . . . Garrison Access . | . . . . Total Hacks 20 | . 7 1 12 Successful 18 | . 5 1 12 Failed 2 | . 2 . . Catastrophic . | . . . . Database Lockouts . | . . . . Manual 3 | . 3 . . Terminals 4 | . 4 . . Fabricators . | . . . . Repair Stations . | . . . . Recycling Units 3 | . 3 . . Scanalyzers . | . . . . Garrison Access . | . . . . Terminal Hacks 16 | . 3 1 12 Record 12 | . . . 12 Branch Access Points 1 | . 1 . . Hauler Manifests 1 | . 1 . . Zone Layout 1 | . 1 . . Proto ID Catalog 1 | . . 1 . Fabricator Hacks . | . . . . Repair Station Hacks . | . . . . Recycling Unit Hacks 1 | . 1 . . Report Inventory 1 | . 1 . . Scanalyzer . | . . . . Garrison Access Hacks . | . . . . Unauthorized Hacks 1 | . 1 . . Terminals . | . . . . Fabricators . | . . . . Repair Stations . | . . . . Recycling Units 1 | . 1 . . Tunnel 1 | . 1 . . Scanalyzers . | . . . . Garrison Access . | . . . . Data Cores Recovered . | . . . . Used . | . . . . Hacking Detections 1 | . 1 . . Full Trace Events . | . . . . Feedback Events . | . . . . Feedback Blocked . | . . . . Robot Schematics Acquired . | . . . . Robots Built . | . . . . Authchips . | . . . . Time . | . . . . Total Robot Build Rating . | . . . . Part Schematics Acquired . | . . . . Parts Built . | . . . . Authchips . | . . . . Time . | . . . . Total Part Build Rating . | . . . . Part Studies Acquired . | . . . . Parts Repaired . | . . . . Time . | . . . . Parts Recycled . | . . . . Recycled Matter . | . . . . Retrieved Matter . | . . . . Retrieved Components . | . . . . Parts Scanalyzed . | . . . . Part Schematics Acquired . | . . . . Parts Damaged . | . . . . Bothacking | -11 -10 -10 -9 ------------ Run | Yrd Mat Sub Scr Used RIF Installer . | . . . . Robots Hacked . | . . . . Non-combat . | . . . . Combat . | . . . . Robot Hacks Applied . | . . . . Relay Couplers Released . | . . . . Fabnet Peak Effective % . | . . . . Robots Rewired . | . . . . Allies Hacked . | . . . . Hacks Repelled . | . . . . Allies | -11 -10 -10 -9 -------- Run | Yrd Mat Sub Scr Total Allies 3 | . . . 3 Largest Group 3 | . . . 3 Highest-Rated Group 163 | . . . 163 Highest-Rated Ally 73 | . . . 73 Total Orders . | . . . . Ally Attacks 31 | . . . 31 Total Damage 699 | . . . 699 Kills 7 | . . . 7 Allies Corrupted . | . . . . Allies Melted 3 | . . . 3 X0-1V1 Amusement Gains 122 | . 9 10 103 Good Acts 6 | . . 3 3 Bad Acts 2 | . . 1 1 Intel | -11 -10 -10 -9 ------- Run | Yrd Mat Sub Scr Active Infowar (turns) 652 | . 216 436 . Terrain 652 | . 216 436 . Robot Analysis Total . | . . . . Derelict Logs Recovered 1 | . . . 1 Drone Launches . | . . . . Drone Recoveries . | . . . . Exploration | -11 -10 -10 -9 ------------- Run | Yrd Mat Sub Scr Turns Passed 2400 | . 308 553 1539 Spaces Moved 1499 | 1 140 322 1036 Core . | . . . . Treads 88 | . . 30 58 Legs 1384 | 1 140 292 951 Wheels . | . . . . Hover . | . . . . Flight 27 | . . . 27 Fastest Speed 26 | 120 120 120 26 Average Speed 128 | 120 120 129 128 Slowest Speed 260 | 120 120 260 250 Overloaded Moves 2 | . . . 2 Propulsion Burnouts . | . . . . Robots Hopped . | . . . . Potential Cave-ins . | . . . . Cave-ins Triggered . | . . . . Exploration Rate (%) 25 | 2 25 21 52 Regions Visited 3 Branch Regions 2 Pre-discovered Areas 2 | . 1 . 1 Known Exits Taken . | . . . . Unknown Exits Taken 3 | 1 1 1 . Scrap Searched 10 | . . 8 2 Spaces Dug 1 | . . . 1 Terrain Destroyed 48 | . . 27 21 Melee 1 | . . . 1 Projectile . | . . . . AOE 47 | . . 27 20 Terrain Rammed . | . . . . Walls Destroyed . | . . . . Machines Disabled . | . . . . Actions | -11 -10 -10 -9 --------- Run | Yrd Mat Sub Scr Total 1857 | . 254 390 1213 Wait 225 | . 94 9 122 Move 1496 | . 139 321 1036 Hop . | . . . . Pick Up 20 | . 2 4 14 Fast Attach 8 | . 1 4 3 Attach 5 | . . 3 2 Detach 5 | . . 2 3 Swap 13 | . 2 10 1 Drop 19 | . 3 3 13 Fire 50 | . 13 34 3 Melee 15 | . . . 15 Ram . | . . . . Kick . | . . . . Crush . | . . . . Escape Stasis . | . . . . Rewire . | . . . . Trap 1 | . . . 1 Miscellaneous . | . . . . Route ------- -11/Scrapyard -10/Materials (discovered 4 exits: [*Mat] / Min x2 / *Sub) -10/Subcaves -9/Scraptown (discovered 2 exits: Fac x2) History --------- Turn | Location | Event 1 | -11/Scrapyard | Discovered new exit (range 0) 1 | -11/Scrapyard | Entered Materials 13 | -10/Materials | Identified exit to Mines 179 | -10/Materials | Discovered new exit (range 10) 283 | -10/Materials | Discovered new exit (range 4) 306 | -10/Materials | Build established: Mutant 306 | -10/Materials | Prayed at D.C.S.S. Altar Unit 309 | -10/Materials | Entered Subcaves 310 | -10/Subcaves | Approached by a straggling Scientist 410 | -10/Subcaves | Inventory capacity permanently improved by X0-1V1 (+1; -100 max core) 498 | -10/Subcaves | Disturbed a concealed Subdweller 500 | -10/Subcaves | Disturbed a concealed Subdweller 629 | -10/Subcaves | Ambushed by Subdweller buried in earth 748 | -10/Subcaves | Visited 4L-MR0's lab 758 | -10/Subcaves | Found Prototype Device 758 | -10/Subcaves | Identified Sfc. Transmogrifier 773 | -10/Subcaves | Found Meta Core 862 | -10/Subcaves | Entered Scraptown 862 | -9/Scraptown | System corruption cleaned by C-Scrubber 922 | -9/Scraptown | Visited IN-MT5's Study 1037 | -9/Scraptown | Visited Cave Peace 1152 | -9/Scraptown | Scanned Subdweller tech in exchange for log data 1156 | -9/Scraptown | Learned location of Armory (-3) 1217 | -9/Scraptown | Visited Spacefarers 1279 | -9/Scraptown | Visited Symbiants 1309 | -9/Scraptown | Visited Fellowship of the Rings 1355 | -9/Scraptown | Visited UFD Registry 1355 | -9/Scraptown | Registered with UFD as "Rustcycle" 1392 | -9/Scraptown | Visited Chapter 10 1435 | -9/Scraptown | Visited DA-N13 Charitable Foundation 1445 | -9/Scraptown | Found DCF Scrap (30 items) 1476 | -9/Scraptown | Visited Junk Repository 1510 | -9/Scraptown | Visited A0-MCA Data Center 1517 | -9/Scraptown | Given a C+ rating by A0-MCA 1520 | -9/Scraptown | Found A0-MCA's Component Scanner 1542 | -9/Scraptown | Visited Research Penetration Think Tank 1569 | -9/Scraptown | Visited Junk Repository 1623 | -9/Scraptown | Visited Botcube Research 1632 | -9/Scraptown | Found Botcube 1658 | -9/Scraptown | Visited Derelict Rescue Squad 1677 | -9/Scraptown | Found DRS Beacon 1703 | -9/Scraptown | Visited Curators Association 1792 | -9/Scraptown | Met Optimus 1792 | -9/Scraptown | Accepted into 0bPrime 2009 | -9/Scraptown | Civil war broke out across Scraptown 2059 | -9/Scraptown | Core integrity fell below 50% 2061 | -9/Scraptown | Core integrity fell below 20% 2074 | -9/Scraptown | Attached Meta Core, gained temporary slots: Propulsion, Utility, Weapon 2081 | -9/Scraptown | Lost 4 allies 2081 | -9/Scraptown | Found Surveybot 24 Chip 2112 | -9/Scraptown | Identified exit to Factory 2137 | -9/Scraptown | Optimus destroyed in the chaos of civil war 2189 | -9/Scraptown | Found Botcube 2201 | -9/Scraptown | X0-1V1 activates XOMVISION 2210 | -9/Scraptown | Botcube activated 2213 | -9/Scraptown | Botcube activated 2223 | -9/Scraptown | Botcube completed mutation into treaded form, armed with 1 gun 2237 | -9/Scraptown | Found Lrg. Botcube 2302 | -9/Scraptown | Found Prototype Processor 2369 | -9/Scraptown | Lrg. Botcube activated 2391 | -9/Scraptown | Lrg. Botcube completed mutation into legged form, armed with 1 melee weapon 2401 | -9/Scraptown | Destroyed by 1R-BY1(h) with Bolt Gun Last Messages --------------- 02375_ Bolt penetrates Mutated Botcube. 02376_ Mutated Botcube cannibalizes Ovr. Titanium Leg to repair Ovr. Titanium Leg. 02377_ Mutated Botcube cannibalizes Ovr. Pulse Rifle to repair Ovr. Pulse Rifle. 02379_ Acquired Blade Trap. 02380_ Sfc. Transmogrifier converts Lgt. Armored Exoskeleton into Cld. VTOL Module (x2). 02380_ Discarded Imp. Quantum Reactor. 02380_ Bolt penetrates Mutated Botcube. 02380_ Dropped Hvy. Hammer. 02383_ Bolt penetrates Mutated Botcube. 02390_ Mutated Botcube overheating. 02391_ Lrg. Botcube completes transformation. 02391_ Mutated Botcube overheating. 02398_ Acquired Mak. Hacking Suite. 02398_ Mutated Botcube collects matter. 02400_ Acquired Mak. Hacking Suite. 02401_ Penetrated by Bolt. 02401_ X0-1V1 howls with laughter! Map ----- +----------------------------------------------------+ | | | | | | | | | | | | | | | ?????????????????????????????????????????????????? | | ?????????????????????????????????????????????????? | | ?????????????????????????????????????????????????? | | ?????????????????????????????????????????????????? | | ?????????????????????????????????????????????????? | | ?????????????????????????????????????????????????? | | ?????????????????????????????????????????????????? | | ?????????????????????????????????????????????????? | | ?????????????????????????????????????????????????? | | ?????????????????????????????????????????????????? | | ?????????????????????????????????????????????????? | | ?????????????????????????????????????????????????? | | ?????????????????????????????????????????????????? | | ??????????????????????####???????????????????????? | | ?????????????????????## ##????#?